lending/lending_fUSD_20260306
["ID","MTS","AMOUNT","RATE_DAILY","PERIOD"]
[407843080,1772826641452,-220.0,0.00019487,2]
[407843081,1772826641462,-220.0,0.00019585,2]
[407843082,1772826641471,-220.0,0.00019602,2]
[407843083,1772826641481,-220.0,0.00019686,2]
[407843084,1772826641491,-217.55,0.0001972,2]
[407843085,1772826641500,-516.0,0.00019732,2]
[407843086,1772826641510,-220.0,0.00019793,2]
[407843087,1772826641520,-172.74325605,0.00019844,2]
[407843088,1772826641529,-220.0,0.0001988,2]
[407843089,1772826641539,-2377.35,0.00019973,2]
[407843090,1772826641557,-6939.7382368,0.00019973,2]
[407843091,1772826641569,-217.55,0.0001999,2]
[407843092,1772826641579,-236.82,0.00019992,2]
[407843093,1772826641589,-825.0,0.0002,30]
[407843094,1772826641599,-836.3,0.0002,7]
[407843095,1772826641609,-220.0,0.00020016,2]
[407843096,1772826641619,-220.0,0.00020024,2]
[407843097,1772826641630,-220.0,0.00020053,2]
[407843098,1772826641640,-1467.942747,0.00020069,7]
[407843099,1772826641649,-511.284912,0.00020174,7]
[407843100,1772826641660,-1711.908839,0.00020176,7]
[407843101,1772826641670,-220.0,0.00020182,2]
[407843102,1772826641679,-220.0,0.00020203,2]
[407843103,1772826641689,-220.0,0.00020214,2]
[407843104,1772826641699,-217.55,0.0002026,2]
[407843105,1772826641710,-220.0,0.00020448,2]
[407843106,1772826641720,-217.55,0.0002053,2]
[407843107,1772826641730,-236.82,0.00020791,2]
[407843108,1772826641740,-217.55,0.000208,2]
[407843109,1772826641751,-400.0,0.00021,2]
[407843110,1772826641762,-217.55,0.0002107,2]
[407843111,1772826641773,-1548.4649041,0.00021134,2]
[407843112,1772826641784,-217.55,0.0002134,2]
[407843113,1772826641794,-345.509222,0.00021393,2]
[407843114,1772826641804,-316.41780564,0.00021415,2]
[407843115,1772826641814,-171.61952174,0.00021488,2]
[407843116,1772826641823,-236.82,0.00021591,2]
[407843117,1772826641835,-217.55,0.0002161,2]
[407843118,1772826641846,-2648.99705317,0.00021647,8]
[407843119,1772826641856,-217.55,0.0002188,2]
[407843120,1772826641865,-5000.0,0.00021918,2]
[407843121,1772826641875,-667.65,0.00021918,2]
[407843122,1772826641886,-667.65,0.00021918,2]
[407843123,1772826641896,-234.78,0.00021918,2]
[407843124,1772826641907,-667.65,0.00021952,2]
[407843125,1772826641918,-503.71,0.00022,30]
[407843126,1772826641929,-217.55,0.0002215,2]
[407843127,1772826641939,-667.65,0.00022188,2]
[407843128,1772826641949,-2744.61241816,0.00022221,2]
[407843129,1772826641959,-1579.25580255,0.0002241,2]
[407843130,1772826641969,-217.78,0.0002242,2]
[407843131,1772826641979,-667.65,0.00022424,2]
[407843132,1772826641989,-825.0,0.00022474,30]
[407843133,1772826642002,-667.65,0.0002266,2]
[407843134,1772826642012,-667.65,0.00022896,2]
[407843135,1772826642021,-160.0,0.00023,2]
[407843136,1772826642031,-667.65,0.00023132,2]
[407843137,1772826642040,-1005.13,0.00023207,2]
[407843138,1772826642047,-667.65,0.00023368,2]
[407843139,1772826642054,-228.32,0.00023453,2]
[407843140,1772826642061,-667.65,0.00023604,2]
[407843141,1772826642068,-153.14089528,0.00023674,2]
[407843142,1772826642076,-2827.51910296,0.00023683,11]
[407843143,1772826642082,-150.0,0.00023767,2]
[407843144,1772826642090,-1000.0,0.00023836,2]
[407843145,1772826642096,-667.65,0.0002384,2]
[407843146,1772826642104,-1500.0,0.00024018,2]
[407843147,1772826642114,-667.65,0.00024076,2]
[407843148,1772826642121,-1000.0,0.0002411,2]
[407843149,1772826642131,-667.65,0.00024312,2]
[407843150,1772826642141,-1000.0,0.00024384,2]
[407843151,1772826642151,-667.65,0.00024548,2]
[407843152,1772826642161,-667.65,0.00024548,2]
[407843153,1772826642171,-2000.0,0.00024657,2]
[407843154,1772826642181,-1000.0,0.00024658,2]
[407843155,1772826642191,-150.0,0.00024658,2]
[407843156,1772826642201,-1000.0,0.00024658,2]
[407843157,1772826642211,-449231.81914,0.000249,3]
[407843158,1772826642220,-1000.0,0.00024932,2]
[407843159,1772826642230,-825.0,0.00024948,60]
[407843160,1772826642240,-1058.15,0.00025074,2]
[407843161,1772826642250,-1000.0,0.00025205,2]
[407843162,1772826642260,-2000.0,0.00025468,2]
[407843163,1772826642270,-1000.0,0.00025479,2]
[407843164,1772826642280,-1579.25580255,0.0002548,2]
[407843165,1772826642290,-706.32382314,0.0002557,2]
[407843166,1772826642300,-2934.0369172,0.00025718,14]
[407843167,1772826642311,-1000.0,0.00025753,2]
[407843168,1772826642321,-150.0,0.0002589,2]
[407843169,1772826642331,-1562.0,0.00026027,2]
[407843170,1772826642341,-2508.9,0.000261,14]
[407843171,1772826642351,-503.71,0.00026202,30]
[407843172,1772826642361,-700.0,0.0002627,2]
[407843173,1772826642371,-316.41780564,0.0002655,2]
[407843174,1772826642382,-3425.199744,0.00026759,30]
[407843175,1772826642393,-259.860044,0.00026764,7]
[407843176,1772826642403,-1121.4549504,0.00026799,5]
[407843177,1772826642412,-1110.3219754,0.00026799,5]
[407843178,1772826642422,-1077.39485312,0.00026799,5]
[407843179,1772826642432,-1086.25140571,0.00026799,5]
[407843180,1772826642442,-1133.00044322,0.00026799,5]
[407843181,1772826642451,-1146.09822975,0.00026799,5]
[407843182,1772826642461,-1214.72370853,0.00026799,5]
[407843183,1772826642471,-1192.998129,0.00026899,30]
[407843184,1772826642481,-3994.453958,0.00026901,30]
[407843185,1772826642495,-150.0,0.00027185,2]
[407843186,1772826642505,-200.0,0.000273,30]
[407843187,1772826642515,-1000.0,0.00027397,20]
[407843188,1772826642525,-13710.71,0.00027397,10]
[407843189,1772826642535,-11425.59,0.00027397,10]
[407843190,1772826642545,-400.01,0.000274,7]
[407843191,1772826642555,-515.61,0.000274,7]
[407843192,1772826642565,-825.0,0.00027422,60]
[407843193,1772826642575,-667.65,0.00027616,3]
[407843194,1772826642584,-3085.80839561,0.00027754,18]
[407843195,1772826642594,-2744.61241816,0.00028113,2]
[407843196,1772826642604,-1341.0,0.00028331,2]
[407843197,1772826642614,-3502.0,0.00028331,2]
[407843198,1772826642624,-751.844,0.00028331,2]
[407843199,1772826642634,-1279.0,0.00028331,2]
[407843200,1772826642644,-1212.0,0.00028331,2]
[407843201,1772826642654,-922.0,0.00028331,2]
[407843202,1772826642664,-5990.0,0.00028331,2]
[407843203,1772826642673,-414.0,0.00028331,2]
[407843204,1772826642683,-150.0,0.00028544,2]
[407843205,1772826642693,-1579.25580255,0.0002855,2]
[407843206,1772826642702,-423.0,0.00028568,10]
[407843207,1772826642713,-439.0,0.00028568,10]
[407843208,1772826642723,-171.61952174,0.00028904,2]
[407843209,1772826642733,-825.0,0.00029896,60]
[407843210,1772826642743,-150.0,0.00029971,2]
[407843211,1772826642753,-515.61,0.000304,7]
[407843212,1772826642763,-503.71,0.00030405,60]
[407843213,1772826642773,-667.65,0.00030685,2]
[407843214,1772826642782,-667.65,0.00030685,2]
[407843215,1772826642792,-400.01,0.00031,7]
[407843216,1772826642802,-200.0,0.00031,120]
[407843217,1772826642812,-1341.0,0.00031331,2]
[407843218,1772826642821,-3502.0,0.00031331,2]
[407843219,1772826642831,-619.0,0.00031331,2]
[407843220,1772826642840,-1279.0,0.00031331,2]
[407843221,1772826642850,-1212.0,0.00031331,2]
[407843222,1772826642860,-922.0,0.00031331,2]
[407843223,1772826642870,-5990.0,0.00031331,2]
[407843224,1772826642879,-414.0,0.00031331,2]
[407843225,1772826642889,-150.0,0.0003147,2]
[407843226,1772826642898,-1579.25580255,0.0003162,2]
[407843228,1772826642908,-316.41780564,0.00031685,2]
[407843230,1772826642917,-1535.19626873,0.00031722,2]
[407843231,1772826642927,-906.33303671,0.00031722,6]
[407843232,1772826642936,-902.75970023,0.00031722,2]
[407843233,1772826642946,-2377.35,0.00031754,2]
[407843234,1772826642956,-3679.83522995,0.00031825,24]
[407843235,1772826642966,-243.17004353,0.00032,120]
[407843236,1772826642975,-482.51017562,0.00032,120]
[407843237,1772826642985,-915.85637012,0.00032,120]
[407843238,1772826642999,-589.88941501,0.00032,120]
[407843239,1772826643009,-448.38187215,0.00032,120]
[407843240,1772826643019,-588.00131862,0.00032,120]
[407843241,1772826643029,-1288.22431998,0.00032,120]
[407843242,1772826643040,-223.88690887,0.00032,120]
[407843243,1772826643055,-406.77579278,0.00032,120]
[407843244,1772826643066,-825.0,0.0003237,60]
[407843245,1772826643077,-2090.75,0.000329,30]
[407843246,1772826643088,-515.61,0.00033,14]
[407843247,1772826643099,-243.17004353,0.00033,120]
[407843248,1772826643110,-482.51017562,0.00033,120]
[407843249,1772826643120,-915.85637012,0.00033,120]
[407843250,1772826643129,-589.88941501,0.00033,120]
[407843251,1772826643139,-448.38187215,0.00033,120]
[407843252,1772826643150,-588.00131862,0.00033,120]
[407843253,1772826643161,-1288.22431998,0.00033,120]
[407843254,1772826643171,-223.88690887,0.00033,120]
[407843255,1772826643182,-406.77579278,0.00033,120]
[407843256,1772826643193,-150.0,0.00033043,2]
[407843257,1772826643203,-304.0,0.000333,2]
[407843258,1772826643212,-200.0,0.00033308,30]
[407843259,1772826643222,-400.01,0.000334,14]
[407843260,1772826643232,-901.0,0.00033655,2]
[407843261,1772826643242,-500.0,0.00033655,2]
[407843262,1772826643252,-500.0,0.00033655,2]
[407843263,1772826643263,-500.0,0.00033655,2]
[407843264,1772826643274,-500.0,0.00033655,2]
[407843265,1772826643285,-500.0,0.00033655,2]
[407843266,1772826643296,-500.0,0.00033655,2]
[407843267,1772826643307,-500.0,0.00033655,2]
[407843268,1772826643318,-500.0,0.00033655,2]
[407843269,1772826643329,-243.0,0.00033655,2]
[407843270,1772826643339,-2000.0,0.000338,2]
[407843271,1772826643350,-243.17004353,0.000339,120]
[407843272,1772826643360,-482.51017562,0.000339,120]
[407843273,1772826643368,-915.85637012,0.000339,120]
[407843274,1772826643378,-589.88941501,0.000339,120]
[407843275,1772826643387,-448.38187215,0.000339,120]
[407843276,1772826643397,-588.00131862,0.000339,120]
[407843277,1772826643407,-1288.22431998,0.000339,120]
[407843278,1772826643417,-223.88690887,0.000339,120]
[407843279,1772826643428,-406.77579278,0.000339,120]
[407843280,1772826643438,-2744.61241816,0.00034006,2]
[407843281,1772826643448,-171.0,0.00034175,30]
[407843282,1772826643457,-1341.0,0.00034331,2]
[407843283,1772826643467,-3502.0,0.00034331,2]
[407843284,1772826643476,-619.0,0.00034331,2]
[407843285,1772826643486,-1279.0,0.00034331,2]
[407843286,1772826643495,-1212.0,0.00034331,2]
[407843287,1772826643505,-922.0,0.00034331,2]
[407843288,1772826643514,-5990.0,0.00034331,2]
[407843289,1772826643524,-414.0,0.00034331,2]
[407843290,1772826643533,-689.0,0.00034531,2]
[407843291,1772826643543,-200.0,0.00034531,2]
[407843292,1772826643553,-200.0,0.00034531,2]
[407843293,1772826643563,-200.0,0.00034531,2]
[407843294,1772826643572,-200.0,0.00034531,2]
[407843295,1772826643582,-200.0,0.00034531,2]
[407843297,1772826643593,-200.0,0.00034531,2]
[407843299,1772826643604,-248.0,0.00034531,2]
[407843300,1772826643615,-500.0,0.00034575,2]
[407843301,1772826643625,-1000.0,0.000346,30]
[407843302,1772826643635,-503.71,0.00034607,60]
[407843303,1772826643644,-1579.25580255,0.0003469,2]
[407843304,1772826643654,-150.0,0.00034696,2]
[407843305,1772826643664,-1500.0,0.00034795,2]
[407843306,1772826643673,-515.61,0.000348,14]
[407843308,1772826643683,-825.0,0.00034844,90]
[407843310,1772826643692,-85315.0,0.000349,2]
[407843312,1772826643701,-243.17004353,0.00035,120]
[407843314,1772826643710,-482.51017562,0.00035,120]
[407843316,1772826643719,-915.85637012,0.00035,120]
[407843318,1772826643729,-589.88941501,0.00035,120]
[407843320,1772826643738,-448.38187215,0.00035,120]
[407843322,1772826643747,-588.00131862,0.00035,120]
[407843324,1772826643757,-1288.22431998,0.00035,120]
[407843326,1772826643766,-223.88690887,0.00035,120]
[407843328,1772826643775,-406.77579278,0.00035,120]
[407843330,1772826643785,-200.0,0.00035,3]
[407843332,1772826643794,-166.34,0.00035109,2]
[407843334,1772826643804,-5532.0,0.000354,3]
[407843336,1772826643813,-3134.0,0.00035599,5]
[407843337,1772826643823,-5250.0,0.00035599,5]
[407843339,1772826643833,-400.01,0.000356,14]
[407843340,1772826643842,-500.0,0.00035616,7]
[407843341,1772826643853,-500.0,0.00035616,7]
[407843342,1772826643863,-500.0,0.00035616,7]
[407843343,1772826643872,-500.0,0.00035616,7]
[407843344,1772826643882,-416.34167455,0.00035616,7]
[407843345,1772826643891,-500.0,0.00035616,7]
[407843346,1772826643900,-500.0,0.00035616,7]
[407843347,1772826643909,-500.0,0.00035616,7]
[407843348,1772826643918,-500.0,0.00035616,7]
[407843349,1772826643927,-500.0,0.00035616,7]
[407843350,1772826643937,-500.0,0.00035616,7]
[407843351,1772826643946,-500.0,0.00035616,7]
[407843352,1772826643955,-500.0,0.00035616,7]
[407843353,1772826643964,-500.0,0.00035616,7]
[407843354,1772826643974,-500.0,0.00035616,7]
[407843355,1772826643983,-500.0,0.00035616,7]
[407843356,1772826643994,-550.0,0.00035616,7]
[407843357,1772826644003,-500.0,0.00035616,7]
[407843358,1772826644013,-500.0,0.00035616,7]
[407843359,1772826644022,-500.0,0.00035616,7]
[407843360,1772826644032,-500.0,0.00035616,7]
[407843361,1772826644041,-500.0,0.00035616,7]
[407843362,1772826644051,-5532.0,0.000358,5]
[407843363,1772826644060,-250.0,0.00035838,30]
[407843364,1772826644075,-250.0,0.00035838,30]
[407843365,1772826644084,-228.0,0.00035838,30]
[407843366,1772826644094,-4384.19749025,0.00035896,31]
[407843367,1772826644104,-152.0,0.00035915,3]
[407843368,1772826644114,-243.17004353,0.00036,120]
[407843369,1772826644124,-482.51017562,0.00036,120]
[407843370,1772826644135,-915.85637012,0.00036,120]
[407843371,1772826644148,-589.88941501,0.00036,120]
[407843372,1772826644160,-448.38187215,0.00036,120]
[407843373,1772826644181,-588.00131862,0.00036,120]
[407843374,1772826644199,-1288.22431998,0.00036,120]
[407843375,1772826644214,-223.88690887,0.00036,120]
[407843376,1772826644225,-406.77579278,0.00036,120]
[407843377,1772826644235,-200.0,0.00036192,30]
[407843378,1772826644248,-342.0,0.00036192,30]
[407843379,1772826644260,-500.0,0.00036211,2]
[407843380,1772826644271,-500.0,0.00036211,2]
[407843381,1772826644282,-500.0,0.00036211,2]
[407843382,1772826644294,-500.0,0.00036211,2]
[407843383,1772826644305,-500.0,0.00036211,2]
[407843384,1772826644316,-500.0,0.00036211,2]
[407843385,1772826644325,-500.0,0.00036211,2]
[407843386,1772826644335,-500.0,0.00036211,2]
[407843387,1772826644346,-500.0,0.00036211,2]
[407843388,1772826644356,-500.0,0.00036211,2]
[407843389,1772826644366,-500.0,0.00036211,2]
[407843390,1772826644376,-500.0,0.00036211,2]
[407843391,1772826644385,-500.0,0.00036211,2]
[407843392,1772826644394,-506.0,0.00036211,2]
[407843393,1772826644404,-171.61952174,0.00036319,2]
[407843394,1772826644414,-150.0,0.0003643,2]
[407843395,1772826644423,-200.0,0.0003643,7]
[407843396,1772826644433,-200.0,0.0003643,7]
[407843397,1772826644442,-200.0,0.0003643,7]
[407843398,1772826644452,-200.0,0.0003643,7]
[407843399,1772826644462,-338.0,0.0003643,7]
[407843400,1772826644471,-316.41780564,0.0003682,2]
[407843401,1772826644481,-289.8141,0.00036888,7]
[407843402,1772826644490,-3300.0,0.000369,13]
[407843403,1772826644500,-515.61,0.00037,14]
[407843404,1772826644510,-825.0,0.00037318,90]
[407843405,1772826644519,-1341.0,0.00037331,2]
[407843406,1772826644529,-3502.0,0.00037331,2]
[407843407,1772826644539,-619.0,0.00037331,2]
[407843408,1772826644558,-1279.0,0.00037331,2]
[407843409,1772826644579,-1212.0,0.00037331,2]
[407843410,1772826644589,-5990.0,0.00037331,2]
[407843411,1772826644602,-414.0,0.00037331,2]
[407843412,1772826644611,-150.0,0.00037379,7]
[407843413,1772826644622,-245.0,0.00037379,7]
[407843414,1772826644633,-573.31615994,0.00037416,7]
[407843415,1772826644644,-2000.0,0.000375,2]
[407843416,1772826644655,-182.38026412,0.0003762,7]
[407843417,1772826644664,-400.01,0.000377,14]
[407843418,1772826644678,-152.0,0.00037704,4]
[407843419,1772826644688,-1579.25580255,0.0003776,2]
[407843420,1772826644700,-5038.16470781,0.00037931,42]
[407843421,1772826644714,-804.1,0.00038034,30]
[407843422,1772826644725,-150.0,0.00038078,120]
[407843423,1772826644736,-242.0,0.00038078,120]
[407843424,1772826644748,-150.0,0.00038252,2]
[407843425,1772826644759,-154.0,0.00038275,30]
[407843426,1772826644769,-245.77608828,0.0003838,5]
[407843427,1772826644778,-291.0,0.00038454,120]
[407843428,1772826644788,-150.1,0.00038479,2]
[407843429,1772826644798,-515.61,0.000385,14]
[407843430,1772826644808,-592.0,0.00038674,2]
[407843431,1772826644817,-150.0,0.00038674,2]
[407843432,1772826644827,-150.0,0.00038674,2]
[407843433,1772826644837,-150.0,0.00038674,2]
[407843434,1772826644847,-150.0,0.00038674,2]
[407843435,1772826644857,-150.0,0.00038674,2]
[407843436,1772826644867,-150.0,0.00038674,2]
[407843437,1772826644879,-150.0,0.00038674,2]
[407843438,1772826644891,-287.0,0.00038674,2]
[407843439,1772826644902,-1533.0,0.0003878,120]
[407843440,1772826644913,-156.0,0.0003878,120]
[407843441,1772826644923,-155.0,0.0003878,120]
[407843442,1772826644935,-166.0,0.000388,2]
[407843443,1772826644945,-503.71,0.00038809,90]
[407843444,1772826644956,-2608.3275,0.00038888,30]
[407843445,1772826644966,-200.0,0.00039033,14]
[407843446,1772826644976,-200.0,0.00039033,14]
[407843447,1772826644986,-200.0,0.00039033,14]
[407843448,1772826645002,-200.0,0.00039033,14]
[407843449,1772826645012,-196.0,0.00039033,14]
[407843450,1772826645023,-300.0,0.00039198,7]
[407843451,1772826645035,-300.0,0.00039198,7]
[407843452,1772826645046,-300.0,0.00039198,7]
[407843453,1772826645056,-300.0,0.00039198,7]
[407843454,1772826645067,-300.0,0.00039198,7]
[407843455,1772826645076,-181.0,0.00039198,7]
[407843456,1772826645086,-2271.807,0.00039292,54]
[407843457,1772826645097,-154.777,0.00039292,54]
[407843458,1772826645107,-152.0,0.00039492,5]
[407843459,1772826645116,-2803.0,0.00039496,11]
[407843460,1772826645129,-250.0,0.00039585,7]
[407843461,1772826645139,-250.0,0.00039585,7]
[407843462,1772826645149,-250.0,0.00039585,7]
[407843463,1772826645159,-250.0,0.00039585,7]
[407843464,1772826645169,-251.0,0.00039585,7]
[407843465,1772826645181,-825.0,0.00039792,90]
[407843466,1772826645192,-32912.143,0.00039853,2]
[407843467,1772826645203,-1000.0,0.00039853,2]
[407843468,1772826645212,-500.0,0.0003987,2]
[407843469,1772826645222,-2744.61241816,0.00039898,2]
[407843470,1772826645232,-359.65537879,0.0004,45]
[407843471,1772826645243,-10000.0,0.0004,10]
[407843472,1772826645253,-49193.1714747,0.0004,120]
[407843473,1772826645263,-400.01,0.0004,14]
[407843474,1772826645273,-152.0,0.0004,120]
[407843475,1772826645283,-154.0,0.0004,120]
[407843476,1772826645293,-8091.3796252,0.0004,30]
[407843477,1772826645303,-566.57753946,0.0004,120]
[407843478,1772826645313,-150.0,0.00040048,14]
[407843479,1772826645325,-196.0,0.00040048,14]
[407843480,1772826645335,-150.0,0.00040165,2]
[407843481,1772826645345,-515.61,0.000402,14]
[407843482,1772826645355,-189.0,0.00040224,30]
[407843483,1772826645365,-1341.0,0.00040331,2]
[407843484,1772826645374,-3502.0,0.00040331,2]
[407843485,1772826645383,-619.0,0.00040331,2]
[407843486,1772826645393,-1279.0,0.00040331,2]
[407843487,1772826645403,-1212.0,0.00040331,2]
[407843488,1772826645417,-5990.0,0.00040331,2]
[407843489,1772826645429,-414.0,0.00040331,2]
[407843490,1772826645440,-2934.32179539,0.00040685,10]
[407843491,1772826645450,-24162.88,0.000407,6]
[407843492,1772826645465,-1579.25580255,0.0004083,15]
[407843493,1772826645476,-500.0,0.00040849,2]
[407843494,1772826645486,-152.0,0.000409,120]
[407843495,1772826645496,-154.0,0.000409,120]
[407843496,1772826645691,-170299.0,0.0004095,60]
[407843497,1772826645725,-151.0,0.00040997,14]
[407843498,1772826645735,-488081.21959265,0.00041,30]
[407843499,1772826645745,-500.0,0.0004107,3]
[407843500,1772826645755,-700.0,0.0004107,3]
[407843501,1772826645768,-718.05,0.00041096,120]
[407843502,1772826645778,-150.0,0.00041096,10]
[407843503,1772826645788,-150.0,0.00041096,10]
[407843504,1772826645798,-300.0,0.00041096,10]
[407843505,1772826645808,-1568.0,0.00041096,120]
[407843506,1772826645818,-2000.0,0.000412,2]
[407843507,1772826645829,-152.0,0.0004128,6]
[407843508,1772826645839,-746.0,0.0004137,120]
[407843509,1772826645849,-218.61207107,0.00041468,120]
[407843510,1772826645859,-400.01,0.000415,14]
[407843511,1772826645871,-515.61,0.000415,14]
[407843512,1772826645882,-543.27032365,0.000415,120]
[407843513,1772826645893,-746.0,0.00041644,120]
[407843514,1772826645904,-250.0,0.00041644,10]
[407843515,1772826645915,-250.0,0.00041644,10]
[407843516,1772826645925,-500.0,0.00041644,10]
[407843517,1772826645937,-1000.0,0.00041644,10]
[407843518,1772826645947,-182.38026412,0.00041682,7]
[407843519,1772826645959,-1042.7,0.00041777,30]
[407843520,1772826645970,-150.0,0.00041864,7]
[407843521,1772826645981,-206.0,0.00041864,7]
[407843522,1772826645994,-152.0,0.000419,120]
[407843523,1772826646007,-154.0,0.000419,120]
[407843524,1772826646018,-200.07033,0.00041916,59]
[407843525,1772826646028,-746.0,0.00041918,120]
[407843526,1772826646040,-1000.0,0.00041918,10]
[407843527,1772826646050,-600.0,0.00041918,10]
[407843528,1772826646062,-203.790435,0.00041955,120]
[407843529,1772826646074,-316.41780564,0.00041955,5]
[407843530,1772826646084,-250.0,0.00041997,14]
[407843531,1772826646095,-250.0,0.00041997,14]
[407843532,1772826646105,-250.0,0.00041997,14]
[407843533,1772826646115,-250.0,0.00041997,14]
[407843534,1772826646125,-250.0,0.00041997,14]
[407843535,1772826646136,-221.0,0.00041997,14]
[407843536,1772826646147,-592.0,0.00042,120]
[407843537,1772826646160,-297.0,0.00042,120]
[407843538,1772826646171,-296.0,0.00042,120]
[407843539,1772826646181,-296.0,0.00042,120]
[407843540,1772826646192,-296.0,0.00042,120]
[407843541,1772826646202,-296.0,0.00042,120]
[407843542,1772826646213,-296.0,0.00042,120]
[407843543,1772826646223,-296.0,0.00042,120]
[407843544,1772826646234,-296.0,0.00042,120]
[407843545,1772826646245,-296.0,0.00042,120]
[407843546,1772826646255,-296.0,0.00042,120]
[407843547,1772826646265,-296.0,0.00042,120]
[407843548,1772826646275,-296.0,0.00042,120]
[407843549,1772826646285,-296.0,0.00042,120]
[407843550,1772826646295,-296.0,0.00042,120]
[407843551,1772826646305,-296.0,0.00042,120]
[407843552,1772826646315,-296.0,0.00042,120]
[407843553,1772826646327,-296.0,0.00042,120]
[407843554,1772826646338,-296.0,0.00042,120]
[407843555,1772826646349,-296.0,0.00042,120]
[407843556,1772826646361,-296.0,0.00042,120]
[407843557,1772826646375,-200.0,0.00042,22]
[407843558,1772826646386,-5735.33937335,0.00042002,64]
[407843559,1772826646397,-150.0,0.00042068,21]
[407843560,1772826646406,-150.0,0.00042068,21]
[407843561,1772826646416,-150.0,0.00042068,21]
[407843562,1772826646425,-261.0,0.00042068,21]
[407843564,1772826646435,-150.0,0.00042173,120]
[407843565,1772826646444,-193.90639644,0.00042191,120]
[407843566,1772826646453,-746.0,0.00042192,120]
[407843567,1772826646463,-342.19469794,0.00042192,10]
[407843568,1772826646472,-350.0,0.00042192,10]
[407843569,1772826646481,-350.0,0.00042192,10]
[407843570,1772826646490,-800.0,0.00042202,13]
[407843571,1772826646500,-800.0,0.00042202,13]
[407843572,1772826646509,-800.0,0.00042202,13]
[407843573,1772826646519,-800.0,0.00042202,13]
[407843574,1772826646529,-800.0,0.00042202,13]
[407843575,1772826646538,-800.0,0.00042202,13]
[407843576,1772826646547,-800.0,0.00042202,13]
[407843577,1772826646557,-800.0,0.00042202,13]
[407843578,1772826646568,-800.0,0.00042202,13]
[407843579,1772826646578,-800.0,0.00042202,13]
[407843580,1772826646587,-800.0,0.00042202,13]
[407843581,1772826646596,-800.0,0.00042202,13]
[407843582,1772826646606,-800.0,0.00042202,13]
[407843583,1772826646615,-800.0,0.00042202,13]
[407843584,1772826646625,-800.0,0.00042202,13]
[407843585,1772826646634,-800.0,0.00042202,13]
[407843586,1772826646643,-800.0,0.00042202,13]
[407843587,1772826646653,-800.0,0.00042202,13]
[407843588,1772826646662,-800.0,0.00042202,13]
[407843589,1772826646671,-800.0,0.00042202,13]
[407843590,1772826646681,-800.0,0.00042202,13]
[407843591,1772826646691,-800.0,0.00042202,13]
[407843592,1772826646700,-800.0,0.00042202,13]
[407843593,1772826646710,-800.0,0.00042202,13]
[407843594,1772826646719,-800.0,0.00042202,13]
[407843595,1772826646728,-800.0,0.00042202,13]
[407843596,1772826646737,-800.0,0.00042202,13]
[407843597,1772826646746,-800.0,0.00042202,13]
[407843598,1772826646757,-800.0,0.00042202,13]
[407843599,1772826646766,-800.0,0.00042202,13]
[407843600,1772826646776,-800.0,0.00042202,13]